Workbook

Sheet Sheet1
A1: first mention | B1: last mention | C1: vernacular name (language) | D1: spelling variants | E1: Literal translation | F1: Meaning of names | G1: Aluku | H1: Aucan | I1: Matawai | J1: Paramaccan | K1: Saramaccan | L1: Country | M1: morphological | N1: agronomic traits | O1: animal-related | P1: women general | Q1: female name association | R1: male | S1: from specific region/ ethnicity | T1: african word | U1: came with a name | V1: other
A2: Adron 2013 | B2: Pinas 2021 | C2: bambusi | D2: bamboesi aleisi | E2: bamboo | F2: rice released by Adron rice breeding institute | H2: 1 | L2: Suriname | U2: 1
A3: Adron 2018 | B3: Pinas 2021 | C3: masaa alisi | D3: masaa alisi, masra alesie, masaa | E3: master's rice | F3: rice obtained from plantation Creoles | H3: 1 | L3: Suriname | S3: 1
A4: Adron 2018 | B4: Pinas 2021 | C4: bia bia, bë, weti, baaka, potoko | D4: bia | E4: beard, red, white, black type | F4: beard meaning awn, bia bia is also a man because of the beard this variety has a white, orange and black type | H4: 1 | I4: 1 | K4: 1 | M4: 1 | R4: 1
A5: Adron 2018 | B5: van Andel 2022 | C5: Ma Bapi | D5: mabapi, mabaaba | E5: Mrs. Bapi | F5: Mrs. Bapi was the first to introduce this rice to the community | H5: 1 | L5: French Guiana | Q5: 1
A6: Adron 2018 | B6: Pinas 2021 | C6: tjotji gogo | D6: tjotji/ tjatji gogo | E6: small ass | F6: this rice has small grains with a black tip | I6: 1 | L6: Suriname | M6: 1 | R6: 1
A7: Adron 2018 | B7: Pinas 2021 | C7: awéi máun | D7: awei maun | E7: tiring hands | F7: the yields of this rice are high, tiring the hands of the harvester | I7: 1 | K7: 1 | L7: suriname | N7: 1
A8: Adron 2018 | B8: Pinas 2021 | C8: Golia konde | D8: goli mama | E8: Golia's rice/ place | F8: Mrs. Golia was the first to introduce this rice to the community | K8: 1 | L8: Suriname | Q8: 1
A9: Adron 2018 | B9: Pinas 2021 | C9: Ma Paanza, kwandjaa | D9: Pansa alisi | E9: Mrs. Paanza's rice, purple green type | F9: Mrs. Paanza was the first to cultivate this rice, she first introduced it in the community probably around 1737 | K9: 1 | L9: Suriname | M9: 1 | Q9: 1
A10: Baumgart 1998 | B10: Baumgart 1998 | C10: Amessina | E10: Amessina | F10: Mrs. Amessina first introduced this rice in the community | K10: 1 | L10: Suriname | Q10: 1
A11: Baumgart 1998 | B11: Pinas 2021 | C11: abëdjugá | D11: Abei djuga, abëdjugá | E11: the red Aukan | F11: Probably the Saramaccan people got this rice from their Aukan family or friends, it has a orange husk | K11: 1 | L11: Suriname | M11: 1 | S11: 1
A12: Baumgart 1998 | B12: Pinas 2021 | C12: gaán sii | D12: gran aliesi | E12: big seed | F12: the seed of this rice is large | K12: 1 | L12: Suriname | M12: 1
A13: Baumgart 1998 | B13: Pinas 2021 | C13: kuma böö | E13: just like a fist | F13: this rice has a big seed | K13: 1 | L13: Suriname | M13: 1
A14: Baumgart 1998 | B14: Pinas 2022 | C14: foló | D14: Tolo, Folo, Volo | E14: flower | F14: Panicle is erect, branches hang like flowers | K14: 1 | L14: Suriname | M14: 1
A15: Baumgart 1998 | B15: Ramdayal 2018 | C15: bë alisi | D15: be aleisi, bee alisi, , be aliesie paddasi | E15: red rice | F15: the husk of this rice is orange | K15: 1 | L15: Suriname | M15: 1
A16: Baumgart 1998 | C16: abenaston 1, 2, 3,4 | E16: Abenaston village, several types | F16: this rice was collected in the village Abenaston, probably has other Saramaccan name. | K16: 1 | L16: Suriname | S16: 1
A17: Baumgart 1998 | C17: padasie | E17: unknown different types | F17: unknown | K17: 1 | L17: Suriname | V17: 1
A18: Boonacker 1907 | B18: Pinas 2022 | C18: pende fisi, makka, baaka tee | D18: pende fishi baaca tee, pende fishi maca, pende fishi | E18: striped fish, spiny, black-tailed type | F18: this rice has a striped husk semilar to a small common fish | H18: 1 | I18: 1 | K18: 1 | L18: Suriname | M18: 1 | O18: 1
A19: Boonacker 1907 | B19: van Andel 2017 | C19: Aluku (paansu) | D19: aioekoe | E19: Aluku's rice | F19: this rice was obtained from the Aluku Maroon tribe | H19: 1 | L19: Suriname/ French Guiana | S19: 1
A20: Boonacker 1907 | B20: van Andel 2022 | C20: krioro | D20: kioo | E20: Creole, thankfull, respectful rice | F20: this rice was probably obtained from plantation Creoles | H20: 1 | L20: Suriname | S20: 1
A21: Budelman & Ketelaar 1974 | B21: Adron 2018 | C21: pikin alisi | D21: pikien alesie | E21: small rice | F21: the grains of this rice are small | H21: 1 | K21: 1 | L21: Suriname | M21: 1
A22: Budelman & Ketelaar 1974 | B22: Pinas 2021 | C22: alëkisóóla, bë, weti, ahunjön, pende, rode | D22: soola, aleksoola, aleksoola mujee, alekisoola, alekisola, sowla, exola, eleksora | E22: Rexora, red, white, spotted type | F22: Glabrous-hulled cultivar that was developed in 1926 in Louisiana | G22: 1 | H22: 1 | I22: 1 | J22: 1 | K22: 1 | L22: Suriname | M22: 1 | U22: 1
A23: Budelman & Ketelaar 1974 | C23: aláláheipau | E23: tall plant macaw | F23: the plant of this rice grows tall and the husk is orange similar to the feathers of the red macaw | K23: 1 | L23: Suriname | M23: 1 | O23: 1
A24: Budelman & Ketelaar 1974 | C24: Amapapi | D24: mapaapi | E24: wings | F24: this rice has long bractea as wings | K24: 1 | L24: Suriname | M24: 1
A25: Budelman & Ketelaar 1974 | C25: Azo | E25: stinging nettle | F25: the leaves itch similar to the stinging nettle | K25: 1 | L25: Suriname | N25: 1
A26: de Beet 1981 | C26: jai alisi | E26: menstruation hut rice | F26: this rice was found near a village menstruation hut and further planted | I26: 1 | L26: Suriname | V26: 1
A27: Fleury | C27: puu baka | E27: remove | F27: end of the mourning period (remove out of mourning) | G27: 1 | L27: French Guiana; Suriname | V27: 1
A28: Fleury 1989 | B28: Pinas 2022 | C28: adjina, bia | D28: agina | E28: rice bought from Paramaribo or in a supermarket | F28: agina= burlap sack. rice found in a burlap sack probably from Paramaribo | H28: 1 | I28: 1 | K28: 1 | L28: Suriname | U28: 1
A29: Fleury 1989 | B29: Pinas 2022 | C29: ndyuka alisi | D29: Djoega | E29: Aucan rice | F29: this rice was first seen within the Aucan Maroon tribe | K29: 1 | L29: French Guiana | S29: 1
A30: Fleury 1989 | C30: Sanana | D30: samama | E30: Mrs. Mama / Nana | F30: Mrs. Nana was the first to introduce this rice to the community | G30: 1 | L30: French Guiana | Q30: 1
A31: Fleury 1999 | B31: Pinas 2021 | C31: taanpu ede alisi | D31: tampu ede, tampo ede | E31: upright head rice | F31: the culm of this rice stands upright like Oryza glaberrima, it is probably a glaberrima | G31: 1 | H31: 1 | L31: French Guiana; Suriname | M31: 1 | N31: 1
A32: Fleury 1999 | B32: Ramdayal 2018 | C32: baaka tapoe | E32: black tip | F32: this rice has a black tip | K32: 1 | L32: Suriname | M32: 1
A33: Fleury 1999 | C33: kake | E33: unknown | F33: unknown | G33: 1 | L33: French Guiana | V33: 1
A34: Fleury 1999 | C34: kamu | E34: unknown | F34: unknown | G34: 1 | L34: French Guiana | V34: 1
A35: Fleury 1999 | C35: monio mama | E35: mother Monio | F35: Monio female name | G35: 1 | L35: French Guiana | Q35: 1
A36: Fleury 1999 | C36: sooda | D36: soda soda, mama soda | E36: Sooda | F36: Mrs. Sooda was the first to introduce this rice to the community | G36: 1 | L36: French Guiana | Q36: 1
A37: Fleury 1999 | C37: teleman, lebi | D37: telema | E37: tail man, red type | F37: this rice has a long awn | G37: 1 | L37: French Guiana | M37: 1 | R37: 1
A38: Fleury 1999 | C38: wataa alenki | E38: water? | F38: unknown | G38: 1 | L38: French Guiana | N38: 1
A39: Fleury 1999 | C39: akienki | E39: it changed | F39: unknown | G39: 1 | L39: French Guiana | V39: 1
A40: Geijskes 1952 | B40: Pinas 2021 | C40: mooimasaa | D40: moi masra, mooimasra | E40: handsome man | F40: this rice is handsome as a man in the field | H40: 1 | L40: Suriname | R40: 1
A41: Geijskes 1952 | B41: Pinas 2021 | C41: mesti, lebi, weti, shatu, bigi, pikin | D41: mesiti | E41: teacher, red, white, short, big and small type | F41: named after the first schoolteacher in Stoelmanseiland who handed out this rice to the mothers of the children who attended the school | H41: 1 | K41: 1 | L41: Suriname | R41: 1
A42: Geijskes 1952 | B42: Pinas 2021 | C42: sika sii, bë, weti | D42: sika siri, sika-siri asikasii | E42: Mrs. Sika's seed, red, white type | F42: Mrs. Sika (Mrs. sandflea) was the first to introduce this rice to the community | H42: 1 | K42: 1 | L42: Suriname | M42: 1 | O42: 1 | Q42: 1
A43: Geijskes 1952 | B43: van Andel 2022 | C43: sakáa, pikin, baaka, lebi, weti, gaan | D43: leibi sacca | E43: rice, white, red, black type | F43: general (African) name for rice, sometimes translated as maraca | G43: 1 | H43: 1 | J43: 1 | L43: Suriname | M43: 1 | T43: 1
A44: Geijskes 1952 | C44: asinkini | E44: Sinkini | F44: Mrs. Sinkini first first introduced this rice in the community | H44: 1 | J44: 1 | L44: Suriname | Q44: 1
A45: Geijskes 1952 | C45: dendelei | E45: female? | F45: female name | H45: 1 | J45: 1 | L45: Suriname | Q45: 1 | V45: 1
A46: Geijskes 1952 | C46: Ma Bosu | D46: mabosoe | E46: Mrs. Bosoe | F46: Mrs. Bosoe was the first to introduce this rice to the community | H46: 1 | J46: 1 | L46: Suriname | Q46: 1
A47: Geijskes 1952 | C47: mooida | E47: handsome older man | F47: this rice is handsome as a man in the field | H47: 1 | J47: 1 | L47: Suriname | R47: 1
A48: Geijskes 1952 | C48: skati | E48: chocolate | F48: unknown | H48: 1 | J48: 1 | L48: Suriname | V48: 1
A49: Geijskes 1952 | C49: taampuluku | D49: trampoeloekoe | E49: stand still and look | F49: unknown | H49: 1 | J49: 1 | L49: Suriname | M49: 1
A50: Geijskes 1952 | C50: wetifang | E50: snow white, very white | F50: this rice has white grains | H50: 1 | J50: 1 | L50: Suriname | M50: 1
A51: Geijskes 1952 | C51: Amini | E51: Mrs. Amini | F51: Mrs. Amini first introduced this rice in the community | H51: 1 | L51: Suriname | Q51: 1
A52: Geijskes 1952 | C52: Ma Kubi | D52: akubi | E52: Mrs. Kubi | F52: Mrs. Kubi was the first to introduced it in the community | H52: 1 | L52: French Guiana | Q52: 1
A53: Hoffman 2003 | B53: Ramdayal 2018 | C53: dima | E53: Van Dijk en Mastenbroek | F53: rice released by Adron rice breeding institute, named after founders van Dijk and Mastenbroek | H53: 1 | L53: Suriname | U53: 1
A54: Hoffman 2003 | B54: Pinas 2021 | C54: Ma Ana | D54: saana, maana | E54: Mrs. Ana | F54: Mrs. Ana was the first to introduce this rice to the community | I54: 1 | K54: 1 | L54: Suriname | Q54: 1
A55: Hoffman 2003 | B55: Pinas 2021 | C55: jési teke | D55: jesi pèkè alisi, jesie teke | E55: big ears | F55: the outer glumes of this rice are long: up to half of the seed length | K55: 1 | L55: Suriname | V55: 1
A56: Hoffman 2006 | B56: Pinas 2022 | C56: asindo atapa | D56: asindo atafa | E56: sitting at the table | F56: rice plant is so short that you have to sit on a stool during harvest to prevent your back to bend | K56: 1 | L56: Suriname | M56: 1
A57: Hoffman 2006 | B57: Pinas 2022 | C57: fisi konde | E57: fish place | F57: this rice since its grows very well in water | K57: 1 | L57: Suriname | N57: 1 | O57: 1
A58: Hoffman 2006 | B58: Pinas 2022 | C58: gasiton, bë, weti | E58: large stone, red, white type | F58: the seed of this rice is large? | K58: 1 | L58: Suriname | M58: 1
A59: Hoffman 2006 | B59: Pinas 2022 | C59: kampánja | D59: kampánjan | E59: spotted | F59: kampánjan is a synonym for ahunjön meaning spotted | K59: 1 | L59: Suriname | M59: 1
A60: Hoffman 2006 | B60: Pinas 2022 | C60: kóto mujëë | D60: koto muje | E60: cold woman | F60: This rice needs strong sun to dry well in the open | K60: 1 | L60: Suriname | P60: 1
A61: Hoffman 2006 | B61: Pinas 2022 | C61: mujë́ë kó a mánu | D61: Mujee kuamanu | E61: woman with husband | F61: this rice is difficult to mill, when a woman first visits her mother in law. The mother in law will give this rice to her new daughter in law to test her dedication and strenght | K61: 1 | L61: Suriname | P61: 1
A62: Hoffman 2006 | B62: Pinas 2022 | C62: sákuabandja | D62: sakoabandje | E62: pocket on the side | F62: probably this rice has long outer glumes | K62: 1 | L62: Suriname | M62: 1
A63: Hoffman 2006 | B63: Pinas 2022 | C63: tanda mai, tjaka | E63: teething woman | F63: the seeds are yellow and stand wide apart like your mother in law's teeth | K63: 1 | L63: Suriname | P63: 1
A64: Hostmann 1850 | B64: Pinas 2021 | C64: jooka alisi | D64: joerka aleisi | E64: rice of an ancestor spirit | F64: Spirit rice as this type of O. glaberrima was once collected in a spirit's rice field | G64: 1 | H64: 1 | K64: 1 | L64: Suriname | V64: 1
A65: IRGC 1972 | C65: pinde baaka sakka | D65: Pinde blakka sakka | E65: spotted black rice | F65: this rice has a dark spotted husk | H65: 1 | L65: Suriname | M65: 1 | T65: 1
A66: Mosis 1960 | B66: van Andel 2022 | C66: baiba, baaka, weti, lebi | E66: beard | F66: this rice has a white or black awn | H66: 1 | L66: Suriname | M66: 1
A67: Mosis 1960 | C67: Anamikule | D67: anamikuli, anamikule | E67: Anamikuli indigenous group | F67: rice exchanged with native americans (possibly Awarikuli) | H67: 1 | L67: Suriname | S67: 1
A68: Mosis 1960 | C68: koko | D68: Koko-alisi | E68: big rice | F68: this rice has large seeds | H68: 1 | L68: Suriname | M68: 1
A69: Mosis 1960 | C69: langa ain alisi | E69: long grain rice | F69: this rice has a long and slender grain | H69: 1 | L69: Suriname | M69: 1
A70: Mosis 1960 | B70: Pinas 2021 | C70: kamasondu | D70: Kamasundu, Kamaso-ondo, Akamaso ondo | E70: Gaanman Songe? | F70: Probably named after former Saramaccan chief? | K70: 1 | L70: Suriname | R70: 1
B71: Pinas 2021 | C71: pingo puuma | E71: witlipped peccary (Tayassu pecari) hair | F71: this rice has a long black awn semilar to pecsaries skin hair | K71: 1 | L71: Suriname | O71: 1
A72: Price 1967 | B72: Pinas 2021 | C72: ahunjön (ku labo) | D72: ahoinyo, ahoiyo, ahonjo, honjo alisi, ahonjoh | E72: spotted (with needle) | F72: the husk of this rice is spotted (with an awn) | K72: 1 | M72: 1 | N72: 1
A73: Price 1967 | B73: Pinas 2021 | C73: mbotombolia, bë, lebi, weti, pende | D73: botonboli, Mbotomolia, Botombolie, mbutumbulía, Mboto Molia, | E73: Mbotomboli's rice types erachter | F73: a group of runaway enslaved Africans first seen in the Boterbali creek first introduced this rice to the hinterlands | H73: 1 | K73: 1 | L73: Suriname | M73: 1 | S73: 1
A74: Price 1967 | B74: Pinas 2021 | C74: watra lanti, weti, lebi | D74: wata lanti, watra lantie, watralanti | E74: waterland or water rice from the government, red, white type | F74: this rice was given to the Maroons by a government agent and it grows best in swampy areas | H74: 1 | K74: 1 | L74: Suriname | M74: 1 | N74: 1 | S74: 1
A75: Price 1967 | B75: Pinas 2021 | C75: Akwibí, bë, weti | D75: akwiekie, akwiki | E75: Akwibi, red, white type | F75: Mrs. Akwiki first introduced this rice in the community. Akwibi also means 'very small' | K75: 1 | L75: Suriname, Pikin Lio | M75: 1 | Q75: 1
A76: Price 1967 | B76: Pinas 2021 | C76: ajööö jööö, weti, baaka | D76: joojoo, jooh-jooh (jööö jööö);youyo, wittie ajojo, weti ayoyo, ajoojoo | E76: long hair, white, black | F76: this rice has a long black awn, there is also a variety without an awn | K76: 1 | L76: Suriname | M76: 1 | P76: 1
A77: Price 1967 | B77: Pinas 2021 | C77: Apiikutufutu | E77: green rumped parrotlet (Forpus passerinus) feet | F77: this rice has a small black awn semilar to that of the nails of a green rumped parrotlet | K77: 1 | L77: Suriname | O77: 1
A78: Price 1967 | B78: Pinas 2021 | C78: Asanso konde, bë, weti | D78: sansu konde, asénsi | E78: Asanso's place, red, white type | F78: Mr. or Mrs. Asanso first first introduced this rice in the community | K78: 1 | L78: Suriname, Pikin Lio | M78: 1 | Q78: 1
A79: Price 1967 | B79: Pinas 2021 | C79: baákápáu tjaka, weti, | D79: baaka paw chaka, baaka pau tjaka, Bakapao Jinge Jinge, baaka pau tyaka | E79: Baákápáu's rice, white type | F79: a group of runaway enslaved Africans known as Baákápáu probably first introduced this rice to the hinterland community. The blue color on the harvestor's hand given by anthocyanin in the rice plants is also called baákápáu ('black tree') | K79: 1 | L79: Suriname, Pikin Lio | M79: 1 | S79: 1
A80: Price 1967 | B80: Pinas 2021 | C80: bengkaka, bë | D80: gbenkaka | E80: unknown | F80: unknown | K80: 1 | L80: Suriname | M80: 1 | V80: 1
A81: Price 1967 | B81: Pinas 2021 | C81: Ma Yaya (tjaka), weti | D81: mayaya, majaa, tyaka majaja, weti majaja | E81: Mrs. Yaya's rice, white type | F81: Mrs. Yaa first introduced this rice in the community | K81: 1 | L81: Suriname | M81: 1 | Q81: 1 | T81: 1
A82: Price 1967 | B82: Pinas 2021 | C82: matungá, weti | D82: matoenga, matunga | E82: spiny Solanum species | F82: this rice has a sharp awn semilar to the spines of a spiny Solanum species | K82: 1 | L82: Suriname | M82: 1
A83: Price 1967 | B83: Pinas 2021 | C83: pingo, bé, weti | E83: witlipped peccary (Tayassu pecari), red, white type | F83: this rice has a long black awn semilar to pecsaries skin hair | K83: 1 | L83: Suriname | M83: 1 | O83: 1
A84: Price 1967 | B84: Pinas 2021 | C84: puti | E84: unknown | F84: unknown | K84: 1 | L84: Suriname | V84: 1
A85: Price 1967 | B85: Pinas 2021 | C85: sipai, weti, pikin | D85: Sparie | E85: stingray, white and small type | F85: this rice has awn similar to the tail of a stingray | K85: 1 | L85: Suriname | M85: 1 | O85: 1
A86: Price 1967 | B86: Pinas 2021 | C86: tjë́kë mujë́ë, bë, weti | E86: dancing woman, red, white type | F86: this rice plant dances with the wind in the field | K86: 1 | L86: Suriname | M86: 1 | P86: 1
A87: Price 1967 | B87: Pinas 2021 | C87: watadágu bë, weti | D87: bruine watra dagu, wata a dagu bë | E87: river otter, red, white type | F87: this rice has a long and soft awn similar to the whiskers of the river otter | K87: 1 | L87: Suriname | M87: 1 | O87: 1
A88: Price 1967 | B88: Pinas 2022 | C88: pakía, weti, ahonjun, baaka, lebi | D88: Pakira, Pakiya | E88: collared peccary (Tayassu tajacu), white, spotted, red, black type | F88: this rice has black awns semilar to peccary hairs | K88: 1 | L88: Suriname | N88: 1 | O88: 1
A89: Price 1967 | C89: Akebenú | E89: Akebenú | F89: Mr. or Mrs. Akebenu first introduced this rice in the community | K89: 1 | L89: Suriname, Pikin Lio | Q89: 1 | R89: 1
A90: Price 1967 | C90: alubu, weti | D90: akúlubu | E90: owl, white type | F90: this rice has large grains semilar to the eyes of an owl | K90: 1 | L90: Suriname, Pikin Lio | M90: 1 | O90: 1
A91: Price 1967 | C91: Aputí | E91: local unknown bird | F91: the husk of this rice has the same color as the feathers of this bird | K91: 1 | L91: Suriname, Pikin Lio | O91: 1
A92: Price 1967 | C92: Fansieti konde | E92: Fansieti's field/ Fansieti place | F92: Fansieti is the local woman on whose garden was the first on which this rice was seen | K92: 1 | L92: Suriname, Pikin Lio | Q92: 1
A93: Price 1967 | C93: gbada sii, bë, weti | E93: very broad seed, red, white type | F93: the seed of this rice is large | K93: 1 | L93: Suriname, Pikin Lio | M93: 1
A94: Price 1967 | C94: kaama konde, bë, weti | E94: Kaama place, red, white type | F94: Mrs. Kaama was the first to introduce this rice to the community | K94: 1 | L94: Suriname, Pikin Lio | Q94: 1
A95: Price 1967 | C95: konei konde | E95: Konei's place | F95: Mr. or Mrs. Konei was the first to introduce this rice to the community | K95: 1 | L95: Suriname, Pikin Lio | Q95: 1 | R95: 1
A96: Price 1967 | C96: Ma Te konde, bë | E96: Mrs. Te place, red type | F96: Mrs. Mate was the first to cultivate this, he or she first introduced it in the community | K96: 1 | L96: Suriname | M96: 1 | Q96: 1
A97: Price 1967 | C97: maka sii, weti | E97: thorny seed, white | F97: this rice probably has a scharp awn | K97: 1 | L97: Suriname | M97: 1
A98: Price 1967 | C98: taanga pau, bë | E98: strong plant, red type | F98: probably strong plant? | K98: 1 | L98: Suriname, Pikin Lio | M98: 1 | N98: 1
A99: Price 1967 | C99: tia konde, bë | E99: Tia's place, red type | F99: Mrs. Tia was the first to introduce this rice to the community | K99: 1 | L99: Suriname, Pikin Lio | M99: 1 | Q99: 1
A100: Price 1967 | C100: maai konde, bë, weti | E100: Maai place, red and white type | F100: Mrs. Maai was the first to introduce this rice to the community | K100: 1 | L100: Suriname | M100: 1 | P100: 1
A101: Ramdayal 2018 | B101: Pinas 2021 | C101: toke | D101: Tokhè | E101: Spix's guan (Penelope jacquacu) | F101: the husk of this rice is spotted similar to guineafowls (Numida meleagris) or Spix guan (Penelope jacquacu) | H101: 1 | L101: Suriname | O101: 1 | T101: 1
A102: Ramdayal 2018 | B102: Pinas 2021 | C102: kuli kuli, lebi, weti, baaka tapoe, pooda | D102: kuli kuli, kuli, koelie aliesie, koelie alisi | E102: Hindostani | F102: this rice was obtained from Hindustani people | H102: 1 | K102: 1 | L102: Suriname | M102: 1 | S102: 1
A103: Ramdayal 2018 | B103: Pinas 2021 | C103: dabisán | E103: big bottle | F103: the seeds of this rice are large similar to the dabisan which is a big bottle used to store alcohol from French Guyana | K103: 1 | L103: Suriname | M103: 1
A104: Ramdayal 2018 | B104: Pinas 2021 | C104: puspusi | D104: Poespoesi, puspusitere alesi | E104: cat | F104: this rice has a soft awn similar to a cat's tail | K104: 1 | L104: Suriname | O104: 1
A105: Ramdayal 2018 | B105: Pinas 2022 | C105: baaka hede ma | D105: baaka hibi ma, baaka hede ma | E105: black head woman | F105: black-haired woman: long black awns | K105: 1 | L105: Suriname | M105: 1 | P105: 1
A106: Ramdayal 2018 | B106: Pinas 2022 | C106: babúnu | E106: howler monkey | F106: this rice has a orange husk semilar to the skin of howler monkeys | K106: 1 | L106: Suriname | O106: 1
A107: Ramdayal 2018 | B107: Pinas 2022 | C107: Kaasihánsi weti, bë, langa wójo | D107: , baaka mau | E107: local ant, white, red long grain, black hand type | F107: the leaves itch like the bite of this ant | K107: 1 | L107: Suriname | M107: 1 | O107: 1
A108: Ramdayal 2018 | B108: Pinas 2022 | C108: pimpe sii | D108: Pimpehsie, | E108: Pempé grass (Lasiacis ligulata) | F108: this rice looks like the seeds of pempe grass | K108: 1 | L108: Suriname | S108: 1
A109: Ramdayal 2018 | B109: Styger 2019 | C109: agadiamazo | E109: virgin place | F109: woman that does not want to leave the village to work, who only dresses up nice. | K109: 1 | L109: Suriname | P109: 1
A110: Ramdayal 2018 | B110: Styger 2019 | C110: gandá mazó | D110: gandá mazó, Khanda mansoh, kö́ndë mansoh, agadiamazo | E110: virgin place | F110: virgin village, woman that does not want to leave the village to work, who only dresses up nice (rice looks nice too). | K110: 1 | L110: Suriname | P110: 1
A111: Sally Price1967 | B111: Pinas 2021 | C111: alísi seéi, kwandjaa, bë, weti | D111: alisi seei, alisisei, be alisisei | E111: Seéi's rice, red-seeded, red and white type | F111: Mrs. Seei first first introduced this rice in the community, probably around 1690 | K111: 1 | L111: Suriname | M111: 1 | Q111: 1
A112: Sauvain 1986 | B112: Pinas 2021 | C112: weti hédi ma | D112: weti ediuman, wetihedemama, weti hede ma, wetti hedi ma, weti ede ma | E112: white headed women | F112: this rice has a white long awn similar to a grayhair woman | K112: 1 | L112: Suriname | P112: 1
A113: SIL | C113: asapaapí | E113: type of fish | F113: this rice probably has grains resembling a local fish called Sapaapi | K113: 1 | L113: Suriname | O113: 1
A114: Styger 2019 | B114: Pinas 2021 | C114: tjubula, bë, weti | E114: stingray, red, white type | F114: this rice has an awn semilar to the tail of a stingray | K114: 1 | L114: Suriname | M114: 1 | O114: 1
A115: Styger 2019 | B115: Pinas 2022 | C115: alála pína | E115: Macaw's palm tree | F115: this rice has orange seeds semilar to Ara's often sitting in a particular palm tree | K115: 1 | L115: Suriname | O115: 1
A116: Styger 2019 | B116: Pinas 2022 | C116: hánza-a-bandja | D116: hanza abanya | E116: with wings on the side | F116: this rice has large outer glumes | K116: 1 | L116: Suriname | O116: 1
A117: Valliant 1937 | B117: Hoffman 2006 | C117: carolini | D117: Karolina | E117: Caroline's rice | F117: Mrs. Carolina first first introduced this rice in the community or it came with the name Carolina from elsewhere | H117: 1 | L117: French Guiana | Q117: 1 | U117: 1
A118: Valliant 1937 | B118: Pinas 2021 | C118: alena | D118: Ma Aleyna, aleïna, Ma Lena, Ma aleina | E118: (mother) Alena rice | F118: Mrs. Alena first introduced this rice in the community | G118: 1 | H118: 1 | L118: Suriname | Q118: 1
A119: Valliant 1937 | B119: Pinas 2021 | C119: weti alisi, gaan | D119: weti alishi, weti alisi | E119: white rice, big type | F119: this rice has a large white grains | G119: 1 | H119: 1 | L119: Suriname | M119: 1
A120: Valliant 1937 | B120: Pinas 2021 | C120: lebi alisi, pikin, gaan | D120: leibi alishi, redi alesi, lebi alesie | E120: red rice, small, big type | F120: the husk of this rice is orange | G120: 1 | H120: 1 | L120: Suriname | M120: 1
A121: Valliant 1937 | B121: Pinas 2021 | C121: baáka alísi | D121: bacca alishi | E121: black rice | F121: African rice (O. glaberrima) with dark husk | G121: 1 | H121: 1 | I121: 1 | J121: 1 | K121: 1 | L121: Suriname | M121: 1
A122: Valliant 1937 | B122: Pinas 2021 | C122: Ajengena, lebi, baaw ana | D122: Ma Ajengena, yengena, leibi, bau ana | E122: Mrs. Ajengena's rice, red, blue hand type | F122: Mrs. Ajengena was the first to first first introduced in the community | G122: 1 | H122: 1 | J122: 1 | L122: Suriname | M122: 1 | Q122: 1
A123: Valliant 1937 | B123: Pinas 2021 | C123: kasuwéni, weti | D123: kasiwini, kasueni, kasuwiri, cachouini, kusuweni, kansjouini | E123: itching, white type | F123: when harvesting this rice the harvester gets itching hands | G123: 1 | H123: 1 | J123: 1 | L123: Suriname | N123: 1
A124: Valliant 1937 | B124: Pinas 2021 | C124: pende, lebi, baaka, paata, alisi | D124: leibi, bacca, paata pende | E124: striped rice , white, red, small, flat type | F124: the husk of this rice is spotted | G124: 1 | H124: 1 | I124: 1 | J124: 1 | K124: 1 | L124: French Guiana | M124: 1 | T124: 1
A125: Valliant 1937 | B125: Pinas 2021 | C125: baluba | D125: balouba sancantin, boulouba, baloeba | E125: big belly | F125: the seeds of this rice are large | H125: 1 | L125: Suriname | M125: 1 | T125: 1
A126: Valliant 1937 | B126: Pinas 2021 | C126: djampö | D126: Diampo, Djampo, Djampo alisi, Dyampu, Djanpo | E126: collared peccary (Tayassu tajacu), white, spotted, red, black type | F126: the rice has a long awn semilar to the hair of peccaries | H126: 1 | L126: Suriname | O126: 1
A127: Valliant 1937 | B127: Pinas 2021 | C127: lebi wataa | E127: red water | F127: when cooking the water in which it is cooked turns purple | H127: 1 | L127: Suriname | M127: 1
A128: Valliant 1937 | B128: Pinas 2021 | C128: ampuku alisi | E128: forest spirit rice | F128: this rice was said to be collected in a forest spirit's rice field | H128: 1 | K128: 1 | L128: Suriname | V128: 1
A129: Valliant 1937 | B129: Pinas 2021 | C129: busi alisi | E129: forest rice | F129: this rice was said to be collected in a forest spirit's rice field | H129: 1 | K129: 1 | L129: Suriname | N129: 1
A130: Valliant 1937 | B130: Pinas 2022 | C130: a lulu a bon, Ndyuka, pikin, fini | D130: (pikin)aloulou, alulu, Aloeloe, loeloe, pikin loeloe | E130: He rolls from the tree, Aukan and small type | F130: This rice is shattering easily from the rice plant | G130: 1 | H130: 1 | I130: 1 | J130: 1 | K130: 1 | L130: French Guiana | M130: 1 | N130: 1
A131: Valliant 1937 | B131: van Andel 2017 | C131: a moi a goon | D131: a moi a goon | E131: beauty in the field | F131: the rice plant appears very beautiful in the field | H131: 1 | L131: French Guiana | N131: 1
A132: Valliant 1937 | B132: van Andel 2017 | C132: baala ede | D132: abalahede | E132: broad head | F132: the seeds of this rice are large | H132: 1 | J132: 1 | L132: Suriname | M132: 1
A133: Valliant 1937 | B133: van Andel 2022 | C133: Afanti sacca | E133: Afanti's rice | F133: this rice was probably first introduced into the community by enslaved Africans from the Afanti ethnic group or by a woman named Afanti | H133: 1 | L133: French Guiana | Q133: 1 | T133: 1
A134: Valliant 1937 | B134: van Andel 2022 | C134: kolu kolu | D134: kouloukoulou, kulukulu | E134: very small | F134: the seeds are very small | H134: 1 | L134: French Guiana | M134: 1
A135: Valliant 1937 | C135: Anoussa | E135: Anoussa | F135: Mrs. Anoussa first first introduced this rice in the community | H135: 1 | L135: French Guiana | Q135: 1
A136: Valliant 1937 | C136: kita | E136: wings | F136: this rice probably has long bracts | H136: 1 | L136: French Guiana | O136: 1
A137: Valliant 1937 | C137: Makubi | D137: akubi | E137: Mrs. Kubi | F137: Mrs. Kubi was the first to cultivate this rice, hence she first introduced it in the community | H137: 1 | L137: French Guiana | Q137: 1
A138: Valliant 1937 | C138: pali djina | D138: padi tjina | E138: padi tjina | F138: probably old cultivar imported from Javan 1929 | H138: 1 | L138: French Guiana | U138: 1
A139: Valliant 1937 | C139: pende titi igi | D139: pende titi egui, titi egui pende | E139: striped bird egg | F139: the husk of this rice is spotted semilar to a local bird egg | H139: 1 | L139: French Guiana | O139: 1
A140: Valliant 1937 | C140: pikin marwini | E140: small Marowijne river | F140: the grains of this rice are small | H140: 1 | L140: French Guiana | S140: 1
A141: Valliant 1937 | C141: samsam kila | E141: Samsam's tail? | F141: Samsam was a historic person in Maroon history, Sansankila is also the name for a bird long-tailed tyrant (Colonia colonus) | H141: 1 | L141: French Guiana | R141: 1
A142: Valliant 1937 | C142: skrifimankoti | D142: scrivi ma koti | E142: water bug (Gyrinus natator), plantation administrator clothes..? | F142: this rice came with this name, was commercial wetland rice in the 1930s | H142: 1 | L142: French Guiana | O142: 1 | R142: 1
A143: Valliant 1937 | B143: Baumgart 1999 | C143: baaka saka | D143: baaka-sakka | E143: black rice | F143: rice with a black grains or black husk | G143: 1 | L143: French Guiana | M143: 1 | T143: 1
A144: Valliant 1937 | B144: Pinas 2021 | C144: jengejenge, bé, weti, baákápáu | D144: Jinge jinge, jinge jinge zwp, Njengenjenge, yenge-yenge, yinge yinge, iengue | E144: bell | F144: bundles of rice make a sound when you shake them | G144: 1 | K144: 1 | L144: Suriname | M144: 1
A145: Valliant 1937 | C145: pikin ain | D145: pikin aie | E145: small eye | F145: the grains of this rice are small | G145: 1 | L145: French Guiana | M145: 1
A146: Valliantt 1937 | B146: van Andel 2013 | C146: baaka tee saka | D146: baca tee sacca, baakatee, blaka tere alisi, baaka tere | E146: black tail rice | F146: this rice has black awn | H146: 1 | L146: French Guiana, Suriname | M146: 1 | T146: 1
A147: van Andel 2013 | B147: Pinas 2021 | C147: kwaka alisi | D147: Kwaka | E147: kwak rice | F147: the husk of this rice has the same color as gari (cassava grains) | H147: 1 | L147: Suriname | M147: 1
A148: van Andel 2013 | B148: Pinas 2021 | C148: pikin siri, weti | E148: small seed, white type | F148: the grains of this rice are small | H148: 1 | K148: 1 | L148: Suriname | M148: 1
A149: van Andel 2013 | B149: Adron 2018 | C149: potokíi alisi | D149: potto ko, which email? | E149: (unknown) small black bird's rice | F149: probably because this type of birds likes to flock on this rice | K149: 1 | L149: Suriname | O149: 1
A150: van Andel 2016 | B150: Pinas 2021 | C150: Yaaba | E150: Jaba | F150: Mrs. Yaaba first introduced this rice in the community, probably during marronage | H150: 1 | L150: Suriname | Q150: 1
A151: van Andel 2017 | B151: Pinas 2021 | C151: Sapali, weti, baaka | D151: sapali, sapaa, ma-sapa | E151: Mrs. Apa /Pali, Sapa white and black type | F151: Sapali was the first to introduce this rice to the community | H151: 1 | L151: Suriname, French Guiana | Q151: 1
A152: van Andel 2017 | B152: Pinas 2021 | C152: baaw ana, lebi, weti | D152: blau ana aleisi, A baaw ana | E152: blue hands, red, white type | F152: Anthocyanins in the plant stain the hands blue when harvesting | H152: 1 | J152: 1 | L152: Suriname, French Guiana | M152: 1
A153: van Andel 2017 | B153: Pinas 2022 | C153: Agbosótjaka, weti, bë | D153: agbonso, agbosotjaka, agwonso, abooso | E153: Agbosó rice, white, red type | F153: a group of runaway enslaved africans known as Agbos first first introduced this rice into the Saramaccan clan | K153: 1 | L153: French Guiana | M153: 1 | S153: 1
A154: van Andel 2019 | B154: Pinas 2021 | C154: aláláhíntóóbi | D154: allahintoobi, allala hentoobi, , Alala hintoobi | E154: Macaws in Parkia tree | F154: this rice resembles Ara's in a Parkia tree eating fruits | K154: 1 | L154: Suriname | O154: 1
B155: Koningsbloem 2013 | C155: atandé | E155: it stays there | F155: unknown | H155: 1 | L155: Suriname | N155: 1
B156: Pinas 2021 | C156: Aminjii | E156: Aminjii | F156: Mrs. Aminjii first introduced this rice in the community | H156: 1 | L156: Suriname | Q156: 1
B157: Pinas 2021 | C157: Apaka paansu | E157: Apaka's rice | F157: this rice was first first introduced by Mr. or Mrs. Apaka | H157: 1 | L157: Suriname | Q157: 1
B158: Pinas 2021 | C158: baaw tiki weti alisi | E158: blue stick white rice | F158: Anthocyanins in the plant stain the hands blue when harvesting, the rice grains a white | H158: 1 | L158: Suriname | M158: 1
B159: Pinas 2021 | C159: fooleng | E159: unknown | F159: unknown | H159: 1 | L159: Suriname | V159: 1
B160: Pinas 2021 | C160: Hmong | E160: Hmong people's rice | F160: this rice was exchanged with the Hmong (Vietnamese) in French Guyana | H160: 1 | L160: Suriname | S160: 1
B161: Pinas 2021 | C161: katam | D161: katan, ketan | E161: katam, Javanese sticky rice | F161: Javanese name for sticky rice | H161: 1 | L161: Suriname | S161: 1
B162: Pinas 2021 | C162: m'kono alisi | E162: M'kono's rice | F162: Mrs M'kono died shortly before we visited her village Moytaki, she gave this rice to our informant | H162: 1 | L162: Suriname | Q162: 1
B163: Pinas 2021 | C163: toobi | E163: quarrel | F163: this rice is very tiresome to pound off the husk | H163: 1 | L163: Suriname | N163: 1
B164: Pinas 2021 | C164: watra alisi | E164: water rice | F164: this rice grows best in swampy areas | H164: 1 | L164: Suriname | N164: 1
B165: Pinas 2021 | C165: wintawai, bau ana, lebi | E165: dancing with the wind, blue hand, red type | F165: this rice plant dances with the wind in the field, it has anthocyanin and the husk is orange | H165: 1 | L165: Suriname | M165: 1 | N165: 1
B166: Pinas 2021 | C166: tjantjan poena | E166: old women's pubic hair | F166: this rice has a long white awn | H166: 1 | L166: Suriname | Q166: 1
B167: Pinas 2021 | C167: mátu alisi | E167: forest rice | F167: this rice was said to be collected in a forest spirit's rice field | H167: 1 | K167: 1 | L167: Suriname | N167: 1 | V167: 1
B168: Pinas 2022 | C168: foto alisi | E168: Paramaribo rice | F168: this rice came from Paramaribo, exact origin unknown | H168: 1 | K168: 1 | L168: Suriname | S168: 1
B169: van Andel 2013 | C169: akowina futu | E169: (unkonwn) parakeet foot | F169: this rice has a small black awn similar to the nails of a paraqueet | H169: 1 | L169: Suriname | O169: 1
B170: van Andel 2017 | C170: abadagai | D170: banda kaï | E170: tree, Myrtaceae growing close to rivers | F170: unknown | H170: 1 | L170: French Guiana | V170: 1
B171: van Andel 2017 | C171: adjansi wiri | E171: female pubic hair | F171: the seeds have a curly black awn | H171: 1 | L171: Suriname, French Guiana | P171: 1
B172: van Andel 2017 | C172: gagaga | E172: big big big | F172: the seed of this rice is large | H172: 1 | L172: French Guiana | M172: 1
B173: van Andel 2017 | C173: ganja | E173: unknown | F173: unknown | H173: 1 | L173: French Guiana | V173: 1
B174: van Andel 2017 | C174: gogo wiri | E174: pubic hair | F174: this rice has a curly black awn | H174: 1 | L174: Suriname, French Guiana | P174: 1
B175: van Andel 2017 | C175: Ma Baka | D175: mabaka | E175: Mrs. Baka | F175: Mrs. Baka was the first to introduce this rice to tthe community | H175: 1 | L175: French Guiana | Q175: 1
B176: van Andel 2017 | C176: milli | E176: Milly | F176: Milly is the name of an enslaved woman who brought this rice, she lived in times of slavery, when there were not yet Ndyuka villages. | H176: 1 | L176: Suriname, French Guiana | Q176: 1
B177: van Andel 2017 | C177: mooi uma | E177: beatiful woman | F177: this rice is beautiful as a woman in the field | H177: 1 | L177: French Guiana | P177: 1
B178: van Andel 2017 | C178: onini, lebi, weti | E178: Onini, red, white type | F178: Mrs. Onini first introduced this rice in the community | H178: 1 | L178: Suriname, French Guiana | V178: 1
B179: van Andel 2017 | C179: pikin foo | E179: small bird | F179: the grains of this rice are small semilar to a local small bird | H179: 1 | L179: French Guiana | O179: 1
B180: van Andel 2017 | C180: pikin paansu | E180: small seedling | F180: the grains of this rice are small | H180: 1 | L180: French Guiana | M180: 1
B181: van Andel 2017 | C181: Sa Ajo | D181: Saayo | E181: Mrs. Ajo | F181: Mrs. Ajo first first introduced this rice to the community | H181: 1 | L181: French Guiana | Q181: 1
B182: van Andel 2022 | C182: Anambu | D182: Anamboe | E182: water bird | F182: name for Hmong refugees in French Guyana, who lived in swamps | H182: 1 | L182: Suriname | S182: 1
B183: van Andel 2022 | C183: a bigi ain | E183: its has a big eye | F183: this rice has big grains | H183: 1 | L183: French Guiana | M183: 1
B184: van Andel 2022 | C184: kokokoko | E184: small seeds, densely packed | F184: panicles with densely packed, small seeds | H184: 1 | L184: French Guiana | M184: 1
B185: van Andel 2022 | C185: Maka alisi | E185: spiny rice | F185: this rice has a small awn | H185: 1 | L185: Suriname | M185: 1
B186: van Andel 2022 | C186: mi daai | E186: I turn | F186: Named after an old man Mi daai baino from Tapanahoni | H186: 1 | L186: French Guiana | R186: 1
B187: van Andel 2022 | C187: moksi alisi, weti | E187: mixed rice, white type | F187: hybrid between two rice types | H187: 1 | L187: French Guiana | M187: 1 | N187: 1
B188: van Andel 2022 | C188: téé | E188: tray, wooden plate used to fan rice | F188: unknown | H188: 1 | L188: French Guiana | V188: 1
B189: Adron 2018 | C189: pedrosungu 1, 2, 3 | E189: Pedrosungu village, different types | F189: these rice varieties probably have specific Paramaccan names | J189: 1 | L189: Suriname | S189: 1
B190: Adron 2018 | C190: bajá | D190: baja | E190: dancing | F190: this rice dances with the wind | K190: 1 | L190: Suriname | M190: 1
B191: Adron 2018 | C191: botopási 1, 2, 3 | E191: Botopási village, several types | F191: Botopasi is the village this rice was collected | K191: 1 | L191: Suriname | S191: 1
B192: Adron 2018 | C192: maain | E192: bird species | F192: unknown | K192: 1 | L192: Suriname | O192: 1
B193: Adron 2018 | C193: marshallkreek 1 | E193: Marshallkreek village | F193: rice from Marshallkreek Maroon village | K193: 1 | L193: Suriname | S193: 1
B194: Adron 2018 | C194: victoria1, 2, 3 | E194: Victoria village, different types | F194: this rice was collected in the village Victoria | K194: 1 | L194: Suriname | S194: 1
B195: Embrapa 2016 | C195: topi-topi | E195: unknown | F195: unknown | K195: 1 | L195: Suriname | V195: 1
B196: Fleury 1999 | C196: sulente | E196: unknown | F196: unknown | G196: 1 | L196: French Guiana | V196: 1
B197: Fleury 2016 | C197: Effa | E197: unknown | F197: unknown | G197: 1 | L197: French | V197: 1
B198: Hoffman 2006 | C198: adjamna kulisa | E198: unknown | F198: unknown | K198: 1 | L198: Suriname | V198: 1
B199: Hoffman 2006 | C199: alengisi | E199: Mr. Alengisi | F199: Mr. Alengisi first introduced this rice in the community | K199: 1 | L199: Suriname | R199: 1
B200: Hoffman 2006 | C200: baakabuka | E200: black mouth | F200: this rice has a black tip | K200: 1 | L200: Suriname | M200: 1
... 108 more rows
